Cogmind - Beta 15 @@@ ROGUE MODE // 2025.05.08 @ 01:09:26 Player: Darcyisverycute Result: Destroyed by P-70 Sage with High-powered Shock Rifle Performance ------------- Evolutions (5) 2500 Regions Visited (6) 1200 Robots Destroyed (47) 235 Value Destroyed (1087) 1087 Prototype IDs (7) 140 Alien Tech Used (0) 0 Bonus (976) 976 TOTAL SCORE: 6138 Bonus ------- Follower Combat Kills 176 Registered with UFD 300 Met Optimus in HQ 500 Cogmind --------- Core Integrity 0/1000 Matter 292/300 Energy 90/100 System Corruption 10% Temperature Cool (0) Movement Flying (35) Location -5/Factory Parts ------- > --- POWER (1) -------- (None) > --- PROPULSION (6) --- VTOL Module > --- UTILITY (8) ------ Advanced Signal Interpreter Advanced Terrain Scan Processor Advanced Melee Analysis Suite Improved Hacking Suite Improved Hacking Suite Authchip [Propulsion] > --- WEAPON (2) ------- Companion Sword > --- INVENTORY (5) ---- Scrap Suit Huge Storage Unit Advanced Sensor Array Multitool Peak State ------------ > --- POWER ------------ Micro Fission Core > --- PROPULSION ------- Improved Medium Treads Improved Medium Treads Improved Medium Treads Improved Medium Treads Armored Huge Wheel > --- UTILITY ---------- Huge Storage Unit Advanced Signal Interpreter Advanced Terrain Scan Processor Advanced Melee Analysis Suite Transmission Jammer Improved Hacking Suite Improved Hacking Suite Authchip [Propulsion] > --- WEAPON ----------- Companion Sword > --- INVENTORY -------- Wheel Compact Wheel Antigrav System Scrap Suit High-capacity Storage Unit Medium Matter Pod Structural Scanner Advanced Sensor Array IFF Parser Advanced Terrain Scanner Advanced ECM Suite Improved Thermal Shield Grenade Launcher Grenade Launcher Heavy Missile Launcher Improved Plasma Cutter CPS Tube Multitool Vortex Trap Vortex Trap DRS Beacon [Rating: 79] Favorites ----------- Power Improved Ion Engine Engine Improved Ion Engine Power Core Micro Fission Core Propulsion Spiked Treads Treads Spiked Treads Wheel Subdweller Monowheel Hover Unit Antigrav System Flight Unit VTOL Module Utility High-capacity Storage Unit Device Improved Terrain Scanner Storage High-capacity Storage Unit Processor Advanced Melee Analysis Suite Hackware Improved Hacking Suite Protection Scrap Shield Weapon Companion Sword Energy Gun Small Laser Energy Cannon Subdweller Beam Cannon Ballistic Gun Assault Rifle Launcher Grenade Launcher Special Weapon Multitool Impact Weapon Heavy Flail Slashing Weapon Companion Sword Build | -11 -10 -10 -10 -7 -7 -5 ------- Run | Yrd Mat Min Sub Rec Scr Fac Slots Evolved 10 | . . . . . . 10 Power . | . . . . . . . Propulsion 4 | . . . . . . 4 Utility 6 | . . . . . . 6 Weapon . | . . . . . . . Parts Attached 57 | 7 1 2 7 5 6 29 Power 7 | 1 . . 1 1 . 4 Engine 5 | 1 . . 1 1 . 2 Core 2 | . . . . . . 2 Reactor . | . . . . . . . Propulsion 20 | 2 . . 2 . 2 14 Treads 9 | 2 . . 1 . 1 5 Leg . | . . . . . . . Wheel 5 | . . . 1 . 1 3 Hover 1 | . . . . . . 1 Flight 5 | . . . . . . 5 Utility 18 | 2 1 . 2 . 2 11 Device 7 | 1 . . 1 . 1 4 Storage 3 | 1 1 . . . . 1 Processor 4 | . . . . . . 4 Hackware 3 | . . . . . 1 2 Protection 1 | . . . 1 . . . Artifact . | . . . . . . . Weapon 12 | 2 . 2 2 4 2 . Energy Gun 1 | 1 . . . . . . Energy Cannon 2 | . . . . 2 . . Ballistic Gun 2 | 1 . . 1 . . . Ballistic Cannon . | . . . . . . . Launcher 3 | . . 1 . 1 1 . Special Weapon 1 | . . . 1 . . . Impact Weapon 2 | . . 1 . 1 . . Slashing Weapon 1 | . . . . . 1 . Piercing Weapon . | . . . . . . . Special Melee Weapon . | . . . . . . . Unidentified Prototypes 1 | . . . . . 1 . Corrupted Parts 1 | . . . . . 1 . System Corruption 1 | . . . . . 1 . Parts Lost 20 | . . . . . . 20 Power 4 | . . . . . . 4 Propulsion 13 | . . . . . . 13 Utility 3 | . . . . . . 3 Weapon . | . . . . . . . Highest Loss Streak 9 | . . . . . . 9 To Critical Strikes 1 | . . . . . . 1 Average Backups 14 | 2 11 17 10 16 15 15 Power . | . 1 2 1 1 . . Propulsion 1 | 1 3 4 1 1 . 2 Utility 5 | . 2 4 3 4 5 8 Weapon 6 | . 3 7 4 9 6 2 Tool/Special . | . . . . . . . Unused Backups 35 | . . 2 8 2 13 10 Power 3 | . . . 1 . 2 . Propulsion 5 | . . . 2 1 1 1 Utility 14 | . . 1 4 . 3 6 Weapon 10 | . . 1 1 1 6 1 Tool/Special 3 | . . . . . 1 2 Average Slot Usage (%) 87 | . 100 100 91 98 81 80 Engine 12 | . 14 14 14 14 14 2 Treads 26 | . 28 28 26 28 27 13 Wheel 1 | . . . 1 . . 6 Device 10 | . 14 14 7 14 11 5 Storage 12 | . 14 14 8 14 13 5 Processor 1 | . . . . . . 15 Hackware 1 | . . . . . . 16 Energy Cannon 1 | . . . . 13 . . Ballistic Gun 5 | . 14 14 20 . . . Launcher 1 | . . 8 5 1 . . Impact Weapon 4 | . . 3 . 11 6 . Slashing Weapon 4 | . . . . . 7 5 Peak Build Rating 79 | 9 10 11 13 17 28 79 Average Rating 21 | 6 9 10 10 16 20 63 On Entrance 12 | . 9 10 11 13 17 24 Naked Turns . | . . . . . . . Heaviest Build 95 | 14 49 51 51 59 59 95 Greatest Support 120 | 40 40 40 40 40 42 120 Greatest Overweight (x) 28 | . 1 1 2 1 2 28 Average Overweight (x) 1 | . . 1 . 1 1 1 Largest Inventory Capacity 25 | 8 20 20 20 20 20 25 Average Capacity 18 | 6 18 20 13 20 19 22 Most Carried 25 | 4 15 20 20 20 20 25 Average Carried 17 | 2 11 18 12 19 19 20 Final Capacity 20 | 8 20 20 20 20 20 5 Final Carried 20 | 4 15 20 20 20 20 5 Class Distribution -------------------- 90% | Mutant 8% | Hacker-Mutant Dominant Class ---------------- Mutant | -10/Materials Mutant | -10/Mines Mutant | -10/Subcaves Mutant | -7/Recycling Mutant | -7/Scraptown Hacker-Mutant | -5/Factory Resources | -11 -10 -10 -10 -7 -7 -5 ----------- Run | Yrd Mat Min Sub Rec Scr Fac Matter Collected 1990 | 240 73 67 679 118 261 552 Remotely . | . . . . . . . Salvage Created 1836 | 26 207 109 148 302 . 1044 Parts 99 | 5 17 10 10 1 . 56 Haulers Intercepted . | . . . . . . . Recyclers Shooed 1 | . . . . 1 . . Parts Field Recycled . | . . . . . . . Retrieved Matter . | . . . . . . . Parts Self-Destructed 21 | . . . 21 . . . Prevented . | . . . . . . . Kills | -11 -10 -10 -10 -7 -7 -5 ------- Run | Yrd Mat Min Sub Rec Scr Fac Combat Hostiles Destroyed 28 | . 7 4 5 1 . 11 Melee 11 | . . . . . . 11 Guns 13 | . 7 1 5 . . . AOE 3 | . . 3 . . . . Classes Destroyed 11 | 1 3 1 2 1 . 3 Worker 4 | . . . . . . 4 Builder 4 | . 1 1 . . . 2 Tunneler 3 | 1 1 1 . . . . Recycler 5 | . . . . 2 . 3 Mechanic 1 | . . . . . . 1 Turret 2 | . . . 2 . . . Swarmer 14 | . 5 2 4 . . 3 Grunt 7 | . 2 . . . . 5 Sentry 4 | . . 2 . 1 . 1 Programmer 2 | . . . . . . 2 Subdweller 1 | . . . 1 . . . Best Kill Streak 6 | 1 5 3 5 1 . 6 Combat Bots Only 5 | . 5 2 4 1 . 2 Max Kills in Single Turn 3 | 1 2 3 1 1 . 1 Gunslinging 1 | . 1 . . . . . Exploded 2 | . . 2 . . . . Melee 1 | . . . . . . 1 Uniques/NPCs Destroyed . | . . . . . . . Combat | -11 -10 -10 -10 -7 -7 -5 -------- Run | Yrd Mat Min Sub Rec Scr Fac Hostile Shots Fired 352 | . 23 17 64 45 . 203 Missed 101 | . 5 7 26 14 . 49 Hits 251 | . 18 10 38 31 . 154 Projectile 251 | . 18 10 38 31 . 154 AOE 3 | . . . . . . 3 Critical Strikes 16 | . . . 1 . . 15 Damage Taken 4086 | . 155 199 360 258 . 3114 Core 1167 | . 56 24 11 66 . 1010 Absorbed by Shields 126 | . . . . . . 126 Regen/Repaired (Parts) 221 | . . . . . 221 . Core Remaining (%) 68 | 100 . . . . 37 . Volleys Fired 64 | 2 13 7 34 8 . . Largest 2 | 2 2 2 2 2 . . Hottest 160 | 60 60 50 40 160 . . Shots Fired 123 | 4 27 12 65 15 . . Gun 98 | 4 27 5 62 . . . Cannon 13 | . . . . 13 . . Launcher 12 | . . 7 3 2 . . Special . | . . . . . . . Kinetic 82 | 2 13 5 62 . . . Thermal 29 | 2 14 . . 13 . . Explosive 12 | . . 7 3 2 . . Electromagnetic . | . . . . . . . Robot Hit Streak 10 | 3 6 5 8 10 . . Robot Miss Streak 3 | 1 3 . 2 1 . . Penetration Max . | . . . . . . . Secondary Targets 2 | . 1 . 1 . . . Max Gunslinging Chain 1 | . 1 . 1 . . . Shots Hit Robots 129 | 3 15 4 41 14 . 52 Core Hits 69 | 1 10 12 16 3 . 27 Critical Kills 2 | . 1 . 1 . . . Critical Parts Destroyed 2 | . . . 1 1 . . Critical Strikes 8 | . 1 . 2 1 . 4 Destroy 3 | . 1 . 2 . . . Smash 1 | . . . . 1 . . Melee Attacks 85 | . . 9 . 4 . 72 Impact 13 | . . 9 . 4 . . Slashing 72 | . . . . . . 72 Piercing . | . . . . . . . Sneak Attacks 11 | . . . . 1 . 10 Combat Hostiles . | . . . . . . . Follow-up Attacks 1 | . . . . . . 1 Damage Inflicted 4088 | 37 178 306 415 545 . 2607 Guns 659 | 37 178 29 415 . . . Cannons 249 | . . . . 249 . . Explosions 292 | . . 277 . 15 . . Melee 2885 | . . . . 278 . 2607 Ramming 3 | . . . . 3 . . Kinetic 559 | 27 88 29 415 . . . Thermal 349 | 10 90 . . 249 . . Explosive 292 | . . 277 . 15 . . Electromagnetic . | . . . . . . . Impact 278 | . . . . 278 . . Slashing 2607 | . . . . . . 2607 Piercing . | . . . . . . . Highest Corruption 10 | . 2 2 2 2 3 10 Average Corruption 2 | . 2 2 2 2 2 2 Corruption Purged . | . . . . . . . Corruption Blocked . | . . . . . . . Effects 115 | . 2 16 13 13 62 9 Message Errors 26 | . . 3 3 4 12 4 Matter Fused 31 | . . 4 5 3 16 3 Heat Flow Errors 17 | . . 4 . 1 12 . Energy Discharges 15 | . . 2 . 2 10 1 Parts Fused 1 | . . . . . 1 . Data Loss (minor) 14 | . 1 1 3 1 7 1 Data Loss (major) 6 | . . 1 2 . 3 . Misfires 4 | . 1 1 . 2 . . Alerts 1 | . . . . . 1 . Overload Shots . | . . . . . . . Overflow Damage 391 | . . . . 218 . 173 Projectiles . | . . . . . . . Explosions . | . . . . . . . Melee 391 | . . . . 218 . 173 Knockbacks 1 | . . . . 1 . . Impact 1 | . . . . 1 . . Kinetic . | . . . . . . . Secondary . | . . . . . . . Self-Inflicted Damage 84 | . . 60 . 24 . . Shots 5 | . . 4 . 1 . . Rammed 1 | . . . . 1 . . Targets Rammed 1 | . . . . 1 . . Kicked . | . . . . . . . Crushed . | . . . . . . . Highest Temperature 421 | . 12 247 . 421 253 25 Average Temperature 110 | . 8 81 . 155 102 14 Received Heat Transfer 756 | . 12 45 90 78 . 531 Effects 4 | . . . . 3 1 . Shutdowns 1 | . . . . 1 . . Energy Bleed 1 | . . . . 1 . . Interference 1 | . . . . . 1 . Matter Decay 1 | . . . . 1 . . Siege Activations . | . . . . . . . Martial Activations . | . . . . . . . Shielding Activations . | . . . . . . . Robots Disrupted 1 | . . . . . . 1 Combat Hostiles 1 | . . . . . . 1 Robots Corrupted 2 | . . . . 2 . . Combat Hostiles . | . . . . . . . Parts Fried 1 | . . . . 1 . . Impact Corruptions 6 | . . . . 6 . . Robots Melted 1 | . . . . 1 . . Combat Hostiles 1 | . . . . 1 . . Parts Melted 2 | . 1 . . 1 . . Heat Transferred 558 | 25 200 . . 333 . . Parts Sabotaged . | . . . . . . . Parts Stolen . | . . . . . . . Parts Stripped . | . . . . . . . Power Chain Reactions . | . . . . . . . Alert | -11 -10 -10 -10 -7 -7 -5 ------- Run | Yrd Mat Min Sub Rec Scr Fac Maximum Alert Level . | . . . . . . . Low Security (%) 100 | 100 100 100 . 100 . 100 Level 1 . | . . . . . . . Level 2 . | . . . . . . . Level 3 . | . . . . . . . Level 4 . | . . . . . . . Level 5 . | . . . . . . . High Security . | . . . . . . . Max Security . | . . . . . . . Peak Influence 161 | 5 118 161 . 34 . 103 Initial 36 | . . 36 . . . . Average 17 | . 20 25 . 1 . 25 Influence Increases 1289 | 5 214 277 271 68 . 454 Destroy 0b10 Robot/C 700 | . 140 160 160 20 . 220 Destroy 0b10 Robot/NC 90 | 5 10 10 . 15 . 50 Destroy Leader 80 | . 20 20 . . . 40 Allied During Kill 28 | . . 22 6 . . . Trap Triggered on 0b10 10 | . . . . . . 10 Successful Hack 13 | . 13 . . . . . Disable Machine 45 | . . 30 . 15 . . Destroy Structure 68 | . 1 35 . 18 . 14 Lose Combat Pursuer 255 | . 30 . 105 . . 120 Influence Decreases 1258 | 5 120 246 396 68 . 423 Entered New Map 123 | . . 58 65 . . . Time Decay 950 | 5 120 188 331 68 . 238 Lost Part 185 | . . . . . . 185 Squads Dispatched 5 | . 1 . . . . 4 Investigation 1 | . . . . . . 1 Extermination 2 | . . . . . . 2 Reinforcement 2 | . 1 . . . . 1 Assault . | . . . . . . . Garrison . | . . . . . . . Intercept . | . . . . . . . Searches Triggered . | . . . . . . . Construction Impeded . | . . . . . . . Haulers Reinforced . | . . . . . . . Active Scanning Responses . | . . . . . . . Cargo Convoy Interrupts . | . . . . . . . Stealth | -11 -10 -10 -10 -7 -7 -5 --------- Run | Yrd Mat Min Sub Rec Scr Fac Distress Signals 4 | . 2 . . 1 . 1 Communications Jammed . | . . . . . . . Distress Signals . | . . . . . . . Times Spotted 58 | . 13 6 11 1 . 27 Peak Tracking Total 7 | . 6 3 4 1 . 7 Tactical Retreats 10 | . 2 . 3 . . 5 Traps | -11 -10 -10 -10 -7 -7 -5 ------- Run | Yrd Mat Min Sub Rec Scr Fac Traps Triggered 1 | . 1 . . . . . Indirectly . | . . . . . . . Trap Hack Attempts . | . . . . . . . Triggered . | . . . . . . . Disarmed . | . . . . . . . Reprogrammed . | . . . . . . . Reused 1 | . . . . . . 1 Traps Extracted . | . . . . . . . Installed 4 | . . . 1 1 . 2 Triggered 1 | . . . . . . 1 Most Traps Carried 3 | . . 3 3 2 3 2 Machines | -11 -10 -10 -10 -7 -7 -5 ---------- Run | Yrd Mat Min Sub Rec Scr Fac Machines Disabled 3 | . . 2 . 1 . . Max in Single Turn 2 | . . 2 . 1 . . Machines Repaired . | . . . . . . . Machines Dismantled . | . . . . . . . Machines Sabotaged . | . . . . . . . Overloaded Fab Kills . | . . . . . . . Hacking | -11 -10 -10 -10 -7 -7 -5 --------- Run | Yrd Mat Min Sub Rec Scr Fac Machines Accessed 12 | . 1 . 1 4 4 2 Terminals 5 | . 1 . . 4 . . Fabricators 1 | . . . . . . 1 Repair Stations . | . . . . . . . Recycling Units . | . . . . . . . Scanalyzers . | . . . . . . . Garrison Access 1 | . . . . . . 1 Total Hacks 25 | . 4 . 3 5 10 3 Successful 18 | . 2 . 3 2 10 1 Failed 7 | . 2 . . 3 . 2 Catastrophic 2 | . . . . 1 . 1 Database Lockouts . | . . . . . . . Manual 4 | . 4 . . . . . Terminals 9 | . 4 . . 5 . . Fabricators 1 | . . . . . . 1 Repair Stations . | . . . . . . . Recycling Units . | . . . . . . . Scanalyzers . | . . . . . . . Garrison Access 2 | . . . . . . 2 Terminal Hacks 16 | . 1 . 3 2 10 . Record 11 | . . . 3 . 8 . Open Door 1 | . . . . . 1 . Branch Access Points 1 | . 1 . . . . . Alert Level 1 | . . . . 1 . . Zone Layout 1 | . . . . 1 . . Proto ID Catalog 1 | . . . . . 1 . Fabricator Hacks 1 | . . . . . . 1 Network Status 1 | . . . . . . 1 Repair Station Hacks . | . . . . . . . Recycling Unit Hacks . | . . . . . . . Scanalyzer . | . . . . . . . Garrison Access Hacks . | . . . . . . . Unauthorized Hacks 1 | . 1 . . . . . Terminals 1 | . 1 . . . . . Botnet 1 | . 1 . . . . . Fabricators . | . . . . . . . Repair Stations . | . . . . . . . Recycling Units . | . . . . . . . Scanalyzers . | . . . . . . . Garrison Access . | . . . . . . . Data Cores Recovered . | . . . . . . . Used . | . . . . . . . Hacking Detections 6 | . 1 . . 3 . 2 Full Trace Events 1 | . . . . . . 1 Feedback Events . | . . . . . . . Feedback Blocked . | . . . . . . . Robot Schematics Acquired . | . . . . . . . Robots Built . | . . . . . . . Authchips . | . . . . . . . Time . | . . . . . . . Total Robot Build Rating . | . . . . . . . Part Schematics Acquired . | . . . . . . . Parts Built . | . . . . . . . Authchips . | . . . . . . . Time . | . . . . . . . Total Part Build Rating . | . . . . . . . Parts Repaired . | . . . . . . . Time . | . . . . . . . Parts Recycled . | . . . . . . . Recycled Matter . | . . . . . . . Retrieved Matter . | . . . . . . . Retrieved Components . | . . . . . . . Parts Scanalyzed . | . . . . . . . Part Schematics Acquired . | . . . . . . . Parts Damaged . | . . . . . . . Bothacking | -11 -10 -10 -10 -7 -7 -5 ------------ Run | Yrd Mat Min Sub Rec Scr Fac Used RIF Installer . | . . . . . . . Robots Hacked . | . . . . . . . Non-combat . | . . . . . . . Combat . | . . . . . . . Robot Hacks Applied . | . . . . . . . Relay Couplers Released . | . . . . . . . Fabnet Peak Effective % . | . . . . . . . Robots Rewired . | . . . . . . . Allies Hacked . | . . . . . . . Hacks Repelled . | . . . . . . . Allies | -11 -10 -10 -10 -7 -7 -5 -------- Run | Yrd Mat Min Sub Rec Scr Fac Total Allies 3 | . . 3 . . . . Largest Group 3 | . . 3 3 . . . Highest-Rated Group 40 | . . 40 40 . . . Highest-Rated Ally 16 | . . 16 16 . . . Total Orders . | . . . . . . . Ally Attacks 45 | . . 22 23 . . . Total Damage 409 | . . 145 264 . . . Kills 9 | . . 4 5 . . . Allies Corrupted . | . . . . . . . Allies Melted . | . . . . . . . Intel | -11 -10 -10 -10 -7 -7 -5 ------- Run | Yrd Mat Min Sub Rec Scr Fac Active Infowar (turns) 5405 | 41 522 1144 674 983 1487 554 Sensors 1358 | . . . . . 900 458 IFF 35 | . . . . . . 35 Terrain 4123 | 41 522 1144 674 983 587 172 Jamming 27 | . . . . . . 27 Robot Analysis Total . | . . . . . . . Derelict Logs Recovered 7 | . . 1 1 . 5 . Drone Launches . | . . . . . . . Drone Recoveries . | . . . . . . . Exploration | -11 -10 -10 -10 -7 -7 -5 ------------- Run | Yrd Mat Min Sub Rec Scr Fac Turns Passed 9925 | 116 522 1144 1332 983 4866 962 Spaces Moved 4038 | 60 206 385 584 374 1936 493 Core 8 | 6 . . . . . 2 Treads 3439 | 54 206 385 533 374 1874 13 Legs . | . . . . . . . Wheels 557 | . . . 51 . 62 444 Hover 7 | . . . . . . 7 Flight 27 | . . . . . . 27 Fastest Speed 35 | 50 160 240 110 250 130 35 Average Speed 219 | 149 229 240 198 250 238 136 Slowest Speed 1450 | 160 240 240 250 250 360 1450 Overloaded Moves . | . . . . . . . Propulsion Burnouts . | . . . . . . . Robots Hopped . | . . . . . . . Potential Cave-ins . | . . . . . . . Cave-ins Triggered . | . . . . . . . Exploration Rate (%) 46 | 4 50 69 33 68 85 19 Regions Visited 6 Branch Regions 4 Pre-discovered Areas 1 | . . . . . 1 . Known Exits Taken 2 | . 1 1 . . . . Unknown Exits Taken 4 | 1 . . 1 1 1 . Scrap Searched 3 | . . . . . 3 . Spaces Dug 36 | . . 12 16 1 . 7 Terrain Destroyed 86 | . . 39 23 17 . 7 Melee 15 | . . 7 . 1 . 7 Projectile 3 | . . . . 3 . . AOE 68 | . . 32 23 13 . . Terrain Rammed . | . . . . . . . Walls Destroyed . | . . . . . . . Machines Disabled . | . . . . . . . Actions | -11 -10 -10 -10 -7 -7 -5 --------- Run | Yrd Mat Min Sub Rec Scr Fac Total 4860 | 79 231 579 699 404 2189 679 Wait 425 | 7 . 165 30 1 172 50 Move 4032 | 59 205 384 583 373 1935 493 Hop . | . . . . . . . Pick Up 102 | 4 11 8 19 5 39 16 Fast Attach 37 | 7 . . 10 1 6 13 Attach 20 | . . . . 2 2 16 Detach 7 | . . . 2 . 1 4 Swap 15 | . 1 3 2 2 2 5 Drop 67 | . 1 3 16 6 32 9 Fire 64 | 2 13 7 34 8 . . Melee 84 | . . 9 . 4 . 71 Ram . | . . . . . . . Kick . | . . . . . . . Crush 1 | . . . . 1 . . Escape Stasis . | . . . . . . . Rewire . | . . . . . . . Trap 4 | . . . 1 1 . 2 Miscellaneous 2 | . . . 2 . . . Route ------- -11/Scrapyard -10/Materials -10/Mines (discovered 2 exits: [*Mat] / *Sub) -10/Subcaves -7/Recycling (discovered 2 exits: *Fac / *Scr) -7/Scraptown (discovered 2 exits: *Fac x2) -5/Factory (discovered 2 exits: [*Fac] / Upp) History --------- Turn | Location | Event 7 | -11/Scrapyard | Discovered new exit (range 16) 117 | -11/Scrapyard | Entered Materials 289 | -10/Materials | Identified exit to Mines 307 | -10/Materials | Build established: Mutant 639 | -10/Materials | Entered Mines 710 | -10/Mines | YI-UF0 nonchalantly dropped a Grenade Launcher on the ground 859 | -10/Mines | Assembled infested the area 865 | -10/Mines | Identified exit to Subcaves 876 | -10/Mines | Assisted by bots powering up and referring to "LRC-V3" 1282 | -10/Mines | Discovered new exit (range 13) 1667 | -10/Mines | Found a hidden stash of uninstalled traps 1783 | -10/Mines | Entered Subcaves 1783 | -10/Subcaves | Accompanied by 3 allies 1815 | -10/Subcaves | Visited Clippyterm 1822 | -10/Subcaves | Learned Research security intel 2351 | -10/Subcaves | Discovered new exit (range 10) 3115 | -10/Subcaves | Entered Recycling 3160 | -7/Recycling | Core integrity fell below 50% 3978 | -7/Recycling | Discovered new exit (range 15) 4038 | -7/Recycling | Scanned before Scraplab entrance 4073 | -7/Recycling | Entered Scraplab 4093 | -7/Recycling | Discovered new exit (range 2) 4098 | -7/Recycling | Entered Scraptown 4506 | -7/Scraptown | Discovered new exit (range 13) 5068 | -7/Scraptown | Scanned Subdweller tech in exchange for log data 5075 | -7/Scraptown | Learned Factory security intel 5078 | -7/Scraptown | Learned Factory emergency access door positions 5080 | -7/Scraptown | Learned location of Warlord (-4) 5083 | -7/Scraptown | Learned Research stockpile data 5178 | -7/Scraptown | Visited Assassins FH 5226 | -7/Scraptown | Visited CR-KLE's Repair Center 5299 | -7/Scraptown | Visited UFD Registry 5299 | -7/Scraptown | Registered with UFD as "Biomech" 5362 | -7/Scraptown | Visited Curators Association 5396 | -7/Scraptown | Visited LU-1G1's Boring Crew 5502 | -7/Scraptown | Visited Science Testing Area 5577 | -7/Scraptown | Delivered Scrap Shield to a Scientist 5802 | -7/Scraptown | Visited Junk Repository 5915 | -7/Scraptown | Visited Derelict Rescue Squad 5932 | -7/Scraptown | Found DRS Beacon 5977 | -7/Scraptown | Visited Abandonware Association 6020 | -7/Scraptown | Learned abandonware demo "ERRANTS.EXE" 6119 | -7/Scraptown | Visited Junk Repository 6173 | -7/Scraptown | Visited Chapter 10 6250 | -7/Scraptown | Visited Science Guys 6298 | -7/Scraptown | Visited Sword Containment 6704 | -7/Scraptown | Found Unknown Device 6725 | -7/Scraptown | Found Unknown Device 6758 | -7/Scraptown | Discovered new exit (range 5) 7633 | -7/Scraptown | Visited Fellowship of the Rings 7742 | -7/Scraptown | Visited Cave Peace 7837 | -7/Scraptown | CR-KLE repaired 4 parts 8884 | -7/Scraptown | Met Optimus 8884 | -7/Scraptown | Accepted into 0bPrime 8964 | -7/Scraptown | Entered Factory 8964 | -5/Factory | Evolved 10 slots: Propulsion x4, Utility x6 8965 | -5/Factory | Identified exit to Upper Caves 9406 | -5/Factory | Build established: Hacker-Mutant 9630 | -5/Factory | Discovered new exit (range 14) 9686 | -5/Factory | Lost 3 parts (1p1n1u) 9755 | -5/Factory | Core integrity fell below 50% 9801 | -5/Factory | Lost 9 parts (1p7n1u) 9906 | -5/Factory | Core integrity fell below 20% 9922 | -5/Factory | System corruption reached 10% 9926 | -5/Factory | Destroyed by P-70 Sage with High-powered Shock Rifle Last Messages --------------- 09902_ Lgt. Angular Momentum Engine destroyed. 09905_ VTOL Module destroyed. 09908_ Acquired 8 matter. 09911_ Dropped Vortex Trap. 09912_ Installed Vortex Trap. 09913_ Dropped Vortex Trap. 09916_ Installed Vortex Trap. 09918_ P-70 Sage triggered Vortex Trap. 09918_ A wave of accelerated entropy washes over the area. 09918_ P-70 Sage destroyed. 09918_ Construction Platform disabled. 09918_ VTOL Module destroyed. 09918_ Lgt. Angular Momentum Engine destroyed. 09918_ VTOL Module destroyed. 09918_ P-70 Sage destroyed. 09918_ Adv. Terrain Scanner destroyed. 09920_ Dropped Hcp. Storage Unit. 09924_ Destroyed Tesla Rifle. 09925_ System corrupted: Matter fused (-8). Map ----- +----------------------------------------------------+ | ?????????????????????????????????????????????????? | | ?????????????????????????????????????????????????? | | ?????????????????????????????????????????????????? | | ?????????????????????????????????????????????????? | | ????????????????????????????#????? ??????????????? | | ???????????????????????#######? ???????????????? | | ?????????????????????#?##?####? ? ?#????????????? | | ??????????????????#?#######?### ?+ ???>???????? | | ???????????????? ? # ? #### ????????? | | ?????????????????# ?"" ? ? ####? ???????? | | ??????????????? + "?" ?# ?? ###?#?????????? | | ??????????????? # ?""? ?? ??# ######?#??????? | | ?????????????? # ? ? #?###?##??? # ????? | | ????????????? #####+######?###?###??## ? ? ???? | | ????????????? #####?##??#?### #? ???? | | ???????????# ##########?#### # "??? | | ?????????? ?? ## ? #?? ???? | | ???????????+ # # # ? ?? | | ?????????? ? ## """"""" # # "T"??? | | ?????????? # ; "" """ # ? """ ? | | ?????????#?# !] """" ? ? ?? | | ??????????# |!! """" !# ?####+#? | | ?????????## !!!!] # ? ?? | | ?????????## %=|]& """ # #? | | ?????????## ;% """ #? "?" ?? | | ????????### @ ;[[ """ # """ ??# | | ???????? ?# p; """ # ?"" ?? | | ????????? # ; % #? ? ?? | | ??????????# ;;;;;;+#######? #? | | ????????? # ; ## ####### ? #? | | ????????? # ###### ####### ?? | | ??????????# #### ? ?? ?#? | | ??????????+ % #### ########?#???? | | ??????????# ![ ###? ##?##?##?###?? | | ??????????# " #### #? ? ???? | | ??????????# ###? ## ? ? ?"??? | | ??????????# ! % #### ## ???? ? ??? | | ??????????# [%| #### ##? ? ????? | | ??????????# A * ### # ????????? | | ?????????? * # ??????? | | ??????????? # ? ??????? | | ??????????? ""G"" # ?"???????? | | ???????????? " " + ??????????? | | ???????????? %= # ??????????? | | ????????????? #???????????? | | ???????????? #???????????? | | ?????????????# ##??????????? | | ?????????????# """"""" #???????#### | | ?????????????# """"""" ####### | | ??????????????+## """"""" | +----------------------------------------------------+ Best States ------------- Heat Dissipation 40 Energy Generation 18 Energy Capacity 265 Matter Stores 300 Matter Capacity 300 Sight Range 16 Robot Scan Range 16 Terrain Scan Range 20 Terrain Scan Density 210 Jamming Range 12 Armor Coverage 800 Evasion (%) 40 Melee Accuracy 8 Recoil Reduction 4 Offensive Hacking 24 Authchip Count 1 Item Schematics ----------------- None Robot Schematics ------------------ None Fabricated ------------ Nothing Repaired ---------- Nothing Alien Tech Used ----------------- None Achievements -------------- None Challenges ------------ None Game ------ Seed GravmagOvertunedStabilizer Manual? 0 Play Time 00:53:46 Cumulative 140.0 hours Start 2025.05.08 @ 00:14:07 End 2025.05.08 @ 01:09:26 Sessions 1 Manual Loads 0 Difficulty Rogue Special Mode None Game No. 83 Rogue 75 Adventurer 8 Explorer 0 Win Type - Total 2 Types 2/0/0/0/0/0/0/0/0/0 Lore% 60 Gallery% 61 Achievement% 55 Wizard Run 0 Options --------- Layout 2 ASCII 0 Keyboard 1 Movement Numpad Keybinds 1 Fullscreen 1 Font 48/Smallcaps Map View 50x44 Zoom Use 0% Tactical HUD 1 Map Filters NONE Filters NONE Steam 1 RUN: 271c095b-3042-4485-a572-4149aff6310f